fUSD/lending_fUSD_20251119
["ID","MTS","AMOUNT","RATE_DAILY","PERIOD"]
[394415169,1763545939886,-154.14682216,0.0003896,15]
[394415170,1763545939896,-150.0,0.0003896,15]
[394415171,1763545939905,-500.0,0.0003896,2]
[394415172,1763545939915,-500.0,0.0003896,15]
[394415173,1763545939924,-150.0,0.0003896,15]
[394415174,1763545939934,-150.0,0.0003896,2]
[394415175,1763545939944,-150.0,0.0003896,120]
[394415176,1763545939954,-150.0,0.0003896,15]
[394415177,1763545939963,-500.0,0.0003896,15]
[394415178,1763545939973,-150.0,0.0003896,2]
[394415179,1763545939983,-150.0,0.0003896,15]
[394415180,1763545939993,-150.0,0.0003896,2]
[394415181,1763545940003,-500.0,0.0003896,15]
[394415182,1763545940013,-500.0,0.0003896,15]
[394415183,1763545940024,-150.0,0.0003896,2]
[394415184,1763545940034,-150.0,0.0003896,15]
[394415185,1763545940044,-150.0,0.0003896,15]
[394415186,1763545940054,-150.0,0.0003896,15]
[394415187,1763545940064,-300.0,0.00038972,2]
[394415188,1763545940073,-153.97310303,0.00038987,15]
[394415189,1763545940083,-150.0,0.00038987,15]
[394415190,1763545940093,-156.13584446,0.00038987,15]
[394415191,1763545940102,-170.16025995,0.00038987,15]
[394415192,1763545940112,-150.0,0.00038987,15]
[394415193,1763545940122,-150.0,0.00038987,15]
[394415194,1763545940131,-150.0,0.00038987,15]
[394415195,1763545940141,-500.0,0.00038987,2]
[394415196,1763545940150,-500.0,0.00038987,15]
[394415197,1763545940161,-150.0,0.00038987,15]
[394415198,1763545940170,-150.0,0.00038987,2]
[394415199,1763545940179,-150.0,0.00038987,120]
[394415200,1763545940190,-150.0,0.00038987,15]
[394415201,1763545940199,-500.0,0.00038987,15]
[394415202,1763545940208,-159.33028222,0.00038987,15]
[394415203,1763545940218,-500.0,0.00038987,15]
[394415204,1763545940227,-500.0,0.00038987,15]
[394415205,1763545940237,-150.0,0.00038987,15]
[394415206,1763545940247,-150.0,0.00038987,15]
[394415207,1763545940255,-183.84329,0.00038988,30]
[394415208,1763545940264,-377.0,0.0003899,120]
[394415209,1763545940274,-7048.8463115,0.00038999,10]
[394415210,1763545940284,-999.0,0.00039011,3]
[394415211,1763545940293,-700.83,0.00039014,2]
[394415212,1763545940302,-700.83,0.00039014,2]
[394415213,1763545940311,-478.61,0.00039014,2]
[394415214,1763545940321,-700.83,0.00039014,2]
[394415215,1763545940330,-700.83,0.00039014,2]
[394415216,1763545940339,-700.83,0.00039014,2]
[394415217,1763545940348,-200.0,0.00039015,15]
[394415218,1763545940358,-150.0,0.00039015,15]
[394415219,1763545940367,-500.0,0.00039015,2]
[394415220,1763545940376,-150.0,0.00039015,15]
[394415221,1763545940386,-200.0,0.00039015,15]
[394415222,1763545940396,-200.0,0.00039015,2]
[394415223,1763545940406,-150.0,0.00039015,120]
[394415224,1763545940417,-150.0,0.00039015,15]
[394415225,1763545940427,-303.81467987,0.00039015,15]
[394415226,1763545940436,-500.0,0.00039015,15]
[394415227,1763545940446,-200.0,0.00039015,15]
[394415228,1763545940458,-200.0,0.00039015,15]
[394415229,1763545940468,-1000.0,0.00039017,7]
[394415230,1763545940477,-168.0,0.00039032,120]
[394415231,1763545940487,-169.0,0.00039032,120]
[394415232,1763545940497,-150.0,0.00039042,120]
[394415233,1763545940506,-150.0,0.00039042,15]
[394415234,1763545940515,-500.0,0.00039042,15]
[394415235,1763545940524,-150.0,0.0003907,120]
[394415236,1763545940535,-150.0,0.0003907,15]
[394415237,1763545940544,-500.0,0.0003907,15]
[394415238,1763545940553,-4155.37025775,0.00039072,2]
[394415239,1763545940563,-250.0,0.00039097,120]
[394415240,1763545940573,-250.0,0.00039097,15]
[394415241,1763545940582,-500.0,0.00039097,15]
[394415242,1763545940592,-1000.0,0.000391,7]
[394415243,1763545940602,-500.0,0.00039124,15]
[394415244,1763545940612,-500.0,0.00039152,15]
[394415245,1763545940621,-300.0,0.0003916,2]
[394415246,1763545940630,-449.10787057,0.00039179,15]
[394415247,1763545940640,-183.84329,0.00039188,30]
[394415248,1763545940650,-336.42155282,0.0003921,2]
[394415249,1763545940660,-166.66,0.0003922,30]
[394415250,1763545940669,-1173.0,0.00039298,120]
[394415251,1763545940678,-152.89238043,0.00039303,20]
[394415252,1763545940687,-300.0,0.00039317,2]
[394415253,1763545940697,-1343.0,0.00039374,2]
[394415254,1763545940706,-1173.0,0.00039375,2]
[394415255,1763545940716,-191.681252,0.00039388,120]
[394415256,1763545940726,-151.0,0.00039388,120]
[394415257,1763545940735,-157.31533,0.00039388,120]
[394415258,1763545940745,-151.0,0.00039388,120]
[394415259,1763545940754,-151.0,0.00039388,120]
[394415260,1763545940764,-151.0,0.00039388,120]
[394415261,1763545940774,-151.0,0.00039388,120]
[394415262,1763545940784,-151.0,0.00039388,120]
[394415263,1763545940793,-151.0,0.00039388,120]
[394415264,1763545940803,-263.285936,0.00039388,120]
[394415265,1763545940812,-151.0,0.00039388,120]
[394415266,1763545940821,-151.0,0.00039388,120]
[394415267,1763545940830,-152.881792,0.00039388,120]
[394415268,1763545940839,-151.0,0.00039388,120]
[394415269,1763545940849,-151.0,0.00039388,120]
[394415270,1763545940858,-151.0,0.00039388,120]
[394415271,1763545940868,-151.0,0.00039388,120]
[394415272,1763545940878,-183.84329,0.00039388,30]
[394415273,1763545940888,-1000.0,0.000394,7]
[394415274,1763545940898,-7276.64770072,0.00039421,2]
[394415275,1763545940907,-1343.0,0.00039451,7]
[394415276,1763545940918,-1173.0,0.00039451,7]
[394415277,1763545940927,-864.0,0.00039468,120]
[394415278,1763545940937,-2603.70011027,0.00039486,33]
[394415279,1763545940947,-1173.0,0.00039565,7]
[394415280,1763545940957,-183.84329,0.00039588,30]
[394415281,1763545940967,-218.966974,0.000396,120]
[394415282,1763545940977,-1891.5475403,0.00039615,2]
[394415283,1763545940986,-3433.0,0.00039658,2]
[394415284,1763545940996,-1347.516,0.00039658,2]
[394415285,1763545941006,-738.621,0.00039658,2]
[394415286,1763545941015,-581.405,0.00039658,2]
[394415287,1763545941025,-822.0,0.00039658,2]
[394415288,1763545941035,-1627.641,0.00039658,2]
[394415289,1763545941044,-821.249,0.00039658,2]
[394415290,1763545941054,-1304.821,0.00039658,2]
[394415291,1763545941065,-1605.0,0.00039658,2]
[394415292,1763545941075,-705.0,0.00039658,2]
[394415293,1763545941085,-561.0,0.00039658,2]
[394415294,1763545941095,-6492.0,0.00039658,2]
[394415295,1763545941105,-1000.0,0.000397,7]
[394415296,1763545941114,-300.0,0.00039718,2]
[394415297,1763545941124,-173.0,0.00039759,120]
[394415298,1763545941133,-259.0,0.00039783,120]
[394415299,1763545941143,-183.84329,0.00039788,30]
[394415300,1763545941153,-1173.0,0.00039798,2]
[394415301,1763545941163,-300.0,0.00039878,2]
[394415302,1763545941174,-16624.30276032,0.00039888,2]
[394415303,1763545941183,-175.5293892,0.000399,2]
[394415304,1763545941193,-1065.28018278,0.000399,2]
[394415305,1763545941202,-3600.0,0.000399,14]
[394415306,1763545941212,-18227.9953572,0.000399,2]
[394415307,1763545941221,-1115.4823217,0.000399,2]
[394415308,1763545941231,-4251.7740489,0.000399,2]
[394415309,1763545941242,-285.96,0.00039928,2]
[394415310,1763545941251,-6520.0832415,0.00039973,2]
[394415311,1763545941261,-18660.0477113,0.00039973,2]
[394415312,1763545941270,-151.0,0.00039973,120]
[394415313,1763545941280,-151.0,0.00039973,120]
[394415314,1763545941290,-151.0,0.00039973,120]
[394415315,1763545941300,-151.0,0.00039973,120]
[394415316,1763545941309,-151.0,0.00039973,120]
[394415317,1763545941319,-151.0,0.00039973,120]
[394415318,1763545941329,-151.0,0.00039973,120]
[394415319,1763545941338,-180.789459,0.00039973,120]
[394415320,1763545941348,-298.44475063,0.00039973,120]
[394415321,1763545941357,-151.0,0.00039973,120]
[394415322,1763545941367,-151.0,0.00039973,120]
[394415323,1763545941376,-151.0,0.00039973,120]
[394415324,1763545941385,-151.0,0.00039973,120]
[394415325,1763545941395,-151.0,0.00039973,120]
[394415326,1763545941404,-151.0,0.00039973,120]
[394415327,1763545941413,-151.0,0.00039973,120]
[394415328,1763545941423,-151.0,0.00039973,120]
[394415329,1763545941432,-151.0,0.00039973,120]
[394415330,1763545941442,-151.0,0.00039973,120]
[394415331,1763545941453,-285.330623,0.00039973,120]
[394415332,1763545941463,-151.0,0.00039973,120]
[394415333,1763545941475,-151.0,0.00039973,120]
[394415334,1763545941484,-151.0,0.00039973,120]
[394415335,1763545941495,-265.852755,0.00039973,120]
[394415336,1763545941504,-300.0,0.00039979,10]
[394415337,1763545941514,-66240.83726713,0.0003998,2]
[394415338,1763545941524,-183.84329,0.00039988,30]
[394415339,1763545941533,-300.0,0.00039999,10]
[394415340,1763545941543,-671.84140377,0.00039999,30]
[394415341,1763545941552,-300.0,0.00039999,10]
[394415342,1763545941562,-147379.92293076,0.0004,2]
[394415343,1763545941571,-322.29447055,0.0004,30]
[394415344,1763545941580,-24984.55233064,0.0004,30]
[394415345,1763545941589,-437.0,0.0004,120]
[394415346,1763545941598,-1029.34,0.0004,2]
[394415347,1763545941607,-398.57063525,0.0004,14]
[394415348,1763545941616,-25105.15192069,0.0004,2]
[394415349,1763545941625,-266.029318,0.0004,120]
[394415350,1763545941634,-151.0,0.0004,120]
[394415351,1763545941643,-151.0,0.0004,120]
[394415352,1763545941652,-151.0,0.0004,120]
[394415353,1763545941661,-151.0,0.0004,120]
[394415354,1763545941670,-1948.0,0.0004,7]
[394415355,1763545941680,-4155.37025775,0.00040011,15]
[394415356,1763545941690,-1075.94339602,0.00040152,7]
[394415357,1763545941699,-300.0,0.0004018,2]
[394415358,1763545941708,-183.84329,0.00040188,30]
[394415359,1763545941718,-679.24,0.00040201,2]
[394415360,1763545941727,-175.52938917,0.00040215,2]
[394415361,1763545941736,-300.0,0.00040233,2]
[394415362,1763545941745,-166.0,0.00040297,120]
[394415363,1763545941755,-300.0,0.00040349,2]
[394415364,1763545941763,-2000.0,0.000404,2]
[394415365,1763545941772,-300.0,0.00040407,2]
[394415366,1763545941781,-1000.0,0.00040436,7]
[394415367,1763545941790,-1509.0,0.00040485,120]
[394415368,1763545941799,-300.0,0.00040488,2]
[394415369,1763545941808,-175.52938917,0.00040529,2]
[394415370,1763545941818,-387.35895023,0.00040572,2]
[394415371,1763545941827,-701.0,0.00040573,30]
[394415372,1763545941836,-7276.64770072,0.00040574,15]
[394415373,1763545941846,-183.84329,0.00040588,30]
[394415374,1763545941856,-1000.0,0.000406,7]
[394415375,1763545941866,-300.0,0.00040609,2]
[394415376,1763545941875,-336.42155282,0.00040638,28]
[394415377,1763545941885,-153.0,0.00040642,120]
[394415378,1763545941894,-300.0,0.00040649,2]
[394415379,1763545941904,-300.0,0.00040687,10]
[394415380,1763545941915,-300.0,0.00040698,2]
[394415381,1763545941925,-300.0,0.00040701,2]
[394415382,1763545941934,-570.11,0.0004072,120]
[394415383,1763545942152,-5626.0,0.00040739,7]
[394415384,1763545942163,-200.0,0.00040778,20]
[394415385,1763545942173,-183.84329,0.00040788,30]
[394415386,1763545942182,-175.52938917,0.00040844,2]
[394415387,1763545942191,-1173.0,0.00040866,2]
[394415388,1763545942201,-377.0,0.0004094,120]
[394415389,1763545942210,-4155.37025775,0.00040949,15]
[394415390,1763545942219,-422.0613056,0.00040968,2]
[394415391,1763545942228,-1065.28018276,0.00040982,120]
[394415392,1763545942238,-168.0,0.00040984,120]
[394415393,1763545942247,-169.0,0.00040984,120]
[394415394,1763545942257,-183.84329,0.00040988,30]
[394415395,1763545942266,-150.0,0.00040989,7]
[394415396,1763545942276,-701.0,0.00040991,30]
[394415397,1763545942286,-150.0,0.00040997,7]
[394415398,1763545942295,-151.0,0.00041,90]
[394415399,1763545942305,-979.14198627,0.00041,2]
[394415400,1763545942315,-300.0,0.00041041,2]
[394415401,1763545942324,-1209.94,0.00041068,2]
[394415402,1763545942333,-1209.94,0.00041068,2]
[394415403,1763545942342,-1209.94,0.00041068,2]
[394415404,1763545942351,-1205.22,0.00041068,2]
[394415405,1763545942361,-2902.81765712,0.00041076,36]
[394415406,1763545942371,-500.0,0.00041095,2]
[394415407,1763545942380,-550.61,0.00041095,2]
[394415408,1763545942390,-502.58141552,0.00041095,2]
[394415409,1763545942399,-3614.77,0.00041095,2]
[394415410,1763545942409,-300.0,0.00041095,2]
[394415411,1763545942418,-500.0,0.00041095,2]
[394415412,1763545942427,-300.99786132,0.00041095,2]
[394415413,1763545942437,-495.0,0.00041095,2]
[394415414,1763545942447,-154.89,0.00041096,2]
[394415415,1763545942456,-151.0,0.00041096,120]
[394415416,1763545942467,-151.0,0.00041096,120]
[394415417,1763545942481,-301.519555,0.00041096,120]
[394415418,1763545942490,-151.0,0.00041096,120]
[394415419,1763545942499,-151.0,0.00041096,120]
[394415420,1763545942508,-151.0,0.00041096,120]
[394415421,1763545942518,-151.943372,0.00041096,120]
[394415422,1763545942528,-9999.99,0.00041096,2]
[394415423,1763545942538,-200.0,0.00041096,20]
[394415424,1763545942547,-200.0,0.00041096,20]
[394415425,1763545942556,-593.89617414,0.000411,2]
[394415426,1763545942566,-530.74750729,0.000411,2]
[394415427,1763545942575,-211.092584,0.00041107,2]
[394415428,1763545942586,-151.0,0.00041107,2]
[394415429,1763545942595,-151.30383596,0.00041122,14]
[394415430,1763545942604,-171.4966406,0.00041137,2]
[394415431,1763545942614,-175.52938917,0.00041159,2]
[394415432,1763545942624,-183.84329,0.00041188,30]
[394415433,1763545942633,-4900.0,0.000412,15]
[394415434,1763545942644,-1400.0,0.000412,15]
[394415435,1763545942654,-150.0,0.00041281,14]
[394415436,1763545942664,-150.0,0.00041283,14]
[394415437,1763545942673,-300.0,0.00041288,2]
[394415438,1763545942683,-150.0,0.0004129,14]
[394415439,1763545942693,-6100.0,0.000413,15]
[394415440,1763545942703,-1800.0,0.000413,15]
[394415441,1763545942713,-1000.0,0.00041304,14]
[394415442,1763545942722,-1062.0,0.00041364,2]
[394415443,1763545942731,-550.61,0.00041369,2]
[394415444,1763545942741,-3614.77,0.00041369,2]
[394415445,1763545942750,-300.0,0.00041369,2]
[394415446,1763545942759,-500.0,0.00041369,2]
[394415447,1763545942769,-183.84329,0.00041388,30]
[394415448,1763545942778,-1200.0,0.000414,15]
[394415449,1763545942788,-300.0,0.000414,15]
[394415450,1763545942797,-300.0,0.00041404,2]
[394415451,1763545942807,-300.0,0.00041409,2]
[394415452,1763545942816,-701.0,0.0004141,30]
[394415453,1763545942826,-4577.66798723,0.0004144,2]
[394415454,1763545942836,-864.0,0.00041441,120]
[394415455,1763545942845,-4914.35,0.00041447,15]
[394415456,1763545942855,-11200.16,0.00041447,15]
[394415457,1763545942865,-3958.0,0.00041451,2]
[394415458,1763545942875,-175.52938917,0.00041473,3]
[394415459,1763545942884,-4500.0,0.000415,17]
[394415460,1763545942894,-333.87619262,0.000415,2]
[394415461,1763545942904,-7113.12861968,0.000415,100]
[394415462,1763545942914,-1200.0,0.000415,15]
[394415463,1763545942924,-300.0,0.000415,15]
[394415464,1763545942934,-300.0,0.00041501,2]
[394415465,1763545942943,-302.48585036,0.00041509,106]
[394415466,1763545942953,-511.88267857,0.00041541,30]
[394415467,1763545942963,-183.84329,0.00041588,30]
[394415468,1763545942972,-1200.0,0.000416,15]
[394415469,1763545942982,-300.0,0.000416,15]
[394415470,1763545942992,-150.0,0.00041622,14]
[394415471,1763545943002,-295.499,0.00041623,2]
[394415472,1763545943011,-210.0,0.00041623,2]
[394415473,1763545943020,-200.0,0.00041623,2]
[394415474,1763545943030,-169.446,0.00041623,2]
[394415475,1763545943040,-288.139,0.00041623,2]
[394415476,1763545943050,-150.851,0.00041623,2]
[394415477,1763545943061,-150.268,0.00041623,2]
[394415478,1763545943071,-150.0,0.00041623,2]
[394415479,1763545943081,-150.342,0.00041623,2]
[394415480,1763545943091,-300.0,0.00041629,2]
[394415481,1763545943101,-150.0,0.00041634,14]
[394415482,1763545943111,-550.61,0.00041643,2]
[394415483,1763545943120,-3614.77,0.00041643,2]
[394415484,1763545943131,-300.0,0.00041643,2]
[394415485,1763545943141,-1000.0,0.00041654,14]
[394415486,1763545943151,-679.24,0.00041654,2]
[394415487,1763545943160,-300.0,0.00041659,30]
[394415488,1763545943170,-300.0,0.00041659,30]
[394415489,1763545943179,-62281.6874072,0.0004166,120]
[394415490,1763545943189,-151.0,0.00041672,14]
[394415491,1763545943199,-152.0,0.00041672,14]
[394415492,1763545943209,-153.82676083,0.00041672,14]
[394415493,1763545943218,-2000.0,0.00041678,3]
[394415494,1763545943229,-300.0,0.00041688,2]
[394415495,1763545943239,-300.0,0.00041689,2]
[394415496,1763545943249,-162.94935356,0.00041693,30]
[394415497,1763545943258,-209.74280659,0.000417,120]
[394415498,1763545943269,-188.58154472,0.000417,120]
[394415499,1763545943278,-199.74447139,0.000417,120]
[394415500,1763545943288,-14579.46,0.000417,30]
[394415501,1763545943298,-1200.0,0.000417,15]
[394415502,1763545943307,-300.0,0.000417,15]
[394415503,1763545943316,-300.0,0.00041708,2]
[394415504,1763545943326,-150.0,0.00041723,14]
[394415505,1763545943339,-686.09340882,0.00041728,2]
[394415506,1763545943349,-380.77649458,0.00041728,2]
[394415507,1763545943359,-7276.64770072,0.00041728,15]
[394415508,1763545943368,-4104.76990138,0.00041728,2]
[394415509,1763545943377,-169.01403616,0.00041728,2]
[394415510,1763545943386,-173.0,0.00041747,120]
[394415511,1763545943396,-158129.11308097,0.0004175,2]
[394415512,1763545943406,-150.0,0.00041752,14]
[394415513,1763545943417,-1000.0,0.00041755,14]
[394415514,1763545943426,-300.0,0.00041761,2]
[394415515,1763545943436,-259.0,0.00041772,120]
[394415516,1763545943446,-150.0,0.00041781,14]
[394415517,1763545943457,-300.0,0.00041784,2]
[394415518,1763545943470,-175.52938917,0.00041788,5]
[394415519,1763545943481,-183.84329,0.00041788,30]
[394415520,1763545943490,-169.01403613,0.00041795,2]
[394415521,1763545943501,-150.0,0.000418,60]
[394415522,1763545943512,-1034.26640399,0.000418,10]
[394415523,1763545943522,-1626.0,0.000418,15]
[394415524,1763545943533,-900.0,0.000418,15]
[394415525,1763545943544,-300.0,0.00041801,14]
[394415526,1763545943554,-168.65,0.00041817,120]
[394415527,1763545943564,-942.06091912,0.00041818,7]
[394415528,1763545943574,-213.234,0.00041823,30]
[394415529,1763545943584,-1647.08014488,0.00041827,60]
[394415530,1763545943593,-150.0,0.00041827,2]
[394415531,1763545943603,-4194.88336797,0.00041827,2]
[394415532,1763545943612,-2511531.56330101,0.00041828,120]
[394415533,1763545943622,-701.0,0.00041828,30]
[394415534,1763545943631,-499.0,0.0004183,120]
[394415535,1763545943641,-270.5735801,0.00041838,120]
[394415536,1763545943651,-359.2910566,0.00041844,120]
[394415537,1763545943661,-155.0,0.00041844,30]
[394415538,1763545943671,-203.4835,0.00041844,30]
[394415539,1763545943680,-300.0,0.00041845,120]
[394415540,1763545943690,-2634.20785528,0.0004185,30]
[394415541,1763545943700,-150.0,0.0004185,14]
[394415542,1763545943710,-481.62932167,0.00041854,120]
[394415543,1763545943719,-150.0,0.00041854,14]
[394415544,1763545943728,-169.01403613,0.00041863,2]
[394415545,1763545943737,-2000.0,0.00041865,120]
[394415546,1763545943746,-200.0,0.00041865,120]
[394415547,1763545943755,-1062.0,0.00041881,7]
[394415548,1763545943765,-731.55324784,0.00041886,30]
[394415549,1763545943777,-215.46591617,0.00041886,120]
[394415550,1763545943786,-322.29447055,0.00041887,30]
[394415551,1763545943797,-322.29447055,0.00041887,30]
[394415552,1763545943806,-154.8,0.00041887,2]
[394415553,1763545943816,-500.0,0.00041887,30]
[394415554,1763545943826,-24984.55233064,0.00041887,30]
[394415555,1763545943835,-24984.55233064,0.00041887,30]
[394415556,1763545943845,-24984.55233064,0.00041887,30]
[394415557,1763545943854,-24984.55233064,0.00041887,30]
[394415558,1763545943864,-450.0,0.00041888,12]
[394415559,1763545943874,-2000.0,0.00041888,7]
[394415560,1763545943884,-200.0,0.00041888,7]
[394415561,1763545943894,-162.0,0.00041888,14]
[394415562,1763545943903,-159.62724798,0.00041888,14]
[394415563,1763545943914,-162.0,0.00041888,14]
[394415564,1763545943923,-162.0,0.00041888,14]
[394415565,1763545943933,-152.0,0.00041888,14]
[394415566,1763545943943,-175.0073159,0.00041888,14]
[394415567,1763545943952,-152.0,0.00041888,14]
[394415568,1763545943962,-152.0,0.00041888,14]
[394415569,1763545943972,-152.0,0.00041888,14]
[394415570,1763545943981,-152.0,0.00041888,14]
[394415571,1763545943991,-152.0,0.00041888,14]
[394415572,1763545944000,-152.0,0.00041888,14]
[394415573,1763545944010,-229.05079582,0.00041888,14]
[394415574,1763545944019,-4155.37025775,0.00041888,15]
[394415575,1763545944029,-161.19,0.00041892,2]
[394415576,1763545944039,-686.09340882,0.00041897,2]
[394415577,1763545944049,-380.77649456,0.00041897,2]
[394415578,1763545944059,-4104.76990138,0.00041897,2]
[394415579,1763545944069,-203.94,0.000419,30]
[394415580,1763545944079,-182.44772077,0.000419,120]
[394415581,1763545944089,-5635.85,0.000419,14]
[394415582,1763545944098,-150.0,0.000419,14]
[394415583,1763545944108,-500.0,0.00041917,2]
[394415584,1763545944117,-550.61,0.00041917,2]
[394415585,1763545944126,-3614.77,0.00041917,2]
[394415586,1763545944135,-300.0,0.00041917,2]
[394415587,1763545944144,-300.0,0.00041927,2]
[394415588,1763545944154,-300.0,0.00041935,2]
[394415589,1763545944174,-942.06091912,0.00041945,7]
[394415590,1763545944184,-150.0,0.00041952,14]
[394415591,1763545944195,-1105949.1648,0.00041955,30]
[394415592,1763545944206,-300.0,0.00041985,2]
[394415593,1763545944215,-183.84329,0.00041988,30]
[394415594,1763545944226,-150.0,0.00041999,14]
[394415595,1763545944236,-600.0,0.00042,120]
[394415596,1763545944245,-3500.0,0.00042,120]
[394415597,1763545944255,-9940.04798,0.00042,20]
[394415598,1763545944265,-500.0,0.00042,120]
[394415599,1763545944276,-1000.0,0.00042,120]
[394415600,1763545944285,-996.0,0.00042,30]
[394415601,1763545944296,-309.0,0.00042,30]
[394415602,1763545944308,-206.0,0.00042,30]
[394415603,1763545944318,-455.0,0.00042,30]
[394415604,1763545944328,-1351.64951493,0.0004201,2]
[394415605,1763545944338,-1000.0,0.00042022,14]
[394415606,1763545944347,-152.0,0.00042047,4]
[394415607,1763545944357,-150.0,0.0004205,14]
[394415608,1763545944366,-1065.28018276,0.00042064,120]
[394415609,1763545944377,-300.0,0.00042064,2]
[394415611,1763545944386,-336.42155282,0.00042065,28]
[394415612,1763545944396,-686.09340882,0.00042065,2]
[394415614,1763545944406,-380.77649456,0.00042065,2]
[394415615,1763545944417,-150.0,0.00042073,14]
[394415616,1763545944426,-300.0,0.00042094,2]
[394415617,1763545944436,-582.0,0.000421,3]
[394415618,1763545944446,-242.99286912,0.000421,120]
[394415619,1763545944456,-150.0,0.000421,50]
[394415620,1763545944467,-1000.0,0.00042102,2]
[394415621,1763545944478,-150.0,0.00042102,14]
[394415622,1763545944487,-150.0,0.00042114,14]
[394415623,1763545944496,-502.99680416,0.00042122,30]
[394415624,1763545944506,-300.0,0.00042132,2]
[394415625,1763545944516,-742.36112781,0.00042145,2]
[394415626,1763545944525,-742.36112781,0.00042145,2]
[394415627,1763545944534,-150.0,0.00042148,14]
[394415628,1763545944547,-500.0,0.00042163,30]
[394415629,1763545944556,-500.0,0.00042163,30]
[394415630,1763545944565,-200.0,0.00042164,7]
[394415631,1763545944575,-200.0,0.00042164,7]
[394415632,1763545944584,-2364.29415,0.00042164,12]
[394415633,1763545944593,-200.0,0.00042164,7]
[394415634,1763545944602,-4019.0,0.00042164,120]
[394415635,1763545944697,-256.60970135,0.00042165,30]
[394415636,1763545944707,-256.60970135,0.00042165,30]
[394415637,1763545944717,-16367121.693271,0.00042165,7]
[394415638,1763545944726,-12273802.07855859,0.00042165,7]
[394415639,1763545944735,-7771467.62973634,0.00042165,7]
[394415640,1763545944744,-3821161.44836349,0.00042165,7]
[394415641,1763545944752,-1243555.95741618,0.00042165,7]
[394415642,1763545944761,-39682170.91247821,0.00042165,7]
[394415643,1763545945573,153.575775,0.00042165,120]
[394415644,1763545945603,152.077703,0.00042165,120]
[394415645,1763545945630,153.575775,0.00042165,120]
[394415646,1763545945656,151.930757,0.00042165,120]
[394415647,1763545945684,152.168976,0.00042165,120]
[394415648,1763545945711,153.575775,0.00042165,120]
[394415649,1763545945738,152.077703,0.00042165,120]
[394415650,1763545945764,151.930757,0.00042165,120]
[394415651,1763545945792,152.168976,0.00042165,120]
[394415652,1763545945821,153.575775,0.00042165,120]
[394415653,1763545945847,152.077703,0.00042165,120]
[394415654,1763545945874,151.930757,0.00042165,120]
[394415655,1763545945902,152.168976,0.00042165,120]
[394415656,1763545945930,153.575775,0.00042165,120]
[394415657,1763545945959,152.077703,0.00042165,120]
[394415658,1763545945984,151.930757,0.00042165,120]
[394415659,1763545946015,152.168976,0.00042165,120]
[394415660,1763545946047,153.575775,0.00042165,120]
[394415661,1763545946074,152.077703,0.00042165,120]
[394415662,1763545946105,152.168976,0.00042165,120]
[394415663,1763545946133,152.077703,0.00042165,120]
[394415664,1763545946161,151.930757,0.00042165,120]
[394415665,1763545946190,153.575775,0.00042165,120]
[394415666,1763545946221,152.168976,0.00042165,120]
[394415667,1763545946251,151.930757,0.00042165,120]
[394415668,1763545946279,152.077703,0.00042165,120]
[394415669,1763545946308,153.575775,0.00042165,120]
[394415670,1763545946339,152.168976,0.00042165,120]